Cogmind - Beta 13 @@@ ROGUE MODE // 2024.05.01 @ 15:39:39 Player: Conlarando Result: Destroyed by as-38859 with Assembled Maul Performance ------------- Evolutions (0) 0 Regions Visited (2) 400 Robots Destroyed (26) 130 Value Destroyed (422) 422 Prototype IDs (2) 40 Alien Tech Used (0) 0 Bonus (0) 0 TOTAL SCORE: 992 Bonus ------- None Cogmind --------- Core Integrity 0/250 Matter 147/300 Energy 125/125 System Corruption 7% Temperature Cool (0) Movement Treading (240) Ox1 Location -10/Mines Parts ------- > --- POWER (1) -------- Light Ion Engine > --- PROPULSION (2) --- Light Treads Light Treads > --- UTILITY (2) ------ High-capacity Storage Unit Core Shielding > --- WEAPON (2) ------- Assault Rifle Light Assault Rifle > --- INVENTORY (20) --- Flight Unit Flight Unit Small Storage Unit Medium Storage Unit Signal Interpreter Power Shielding Peak State ------------ > --- POWER ------------ Light Ion Engine > --- PROPULSION ------- Light Treads Light Treads > --- UTILITY ---------- High-capacity Storage Unit Core Shielding > --- WEAPON ----------- Assault Rifle Rocket Launcher > --- INVENTORY -------- Ion Engine Light Treads Light Treads Flight Unit Flight Unit Small Storage Unit Medium Storage Unit Signal Interpreter Power Shielding Assault Rifle Assault Rifle Assault Rifle Light Assault Rifle [Rating: 9] Favorites ----------- Power Light Ion Engine Engine Light Ion Engine Propulsion Light Treads Treads Light Treads Utility Core Shielding Storage Small Storage Unit Processor Signal Interpreter Protection Core Shielding Weapon Assault Rifle Ballistic Gun Assault Rifle Launcher Rocket Launcher Build | -11 -10 -10 ------- Run | Yrd Mat Min Slots Evolved . | . . . Power . | . . . Propulsion . | . . . Utility . | . . . Weapon . | . . . Parts Attached 27 | 6 11 10 Power 4 | 1 1 2 Engine 4 | 1 1 2 Core . | . . . Reactor . | . . . Propulsion 6 | 2 2 2 Treads 6 | 2 2 2 Leg . | . . . Wheel . | . . . Hover . | . . . Flight . | . . . Utility 5 | 1 4 . Device . | . . . Storage 3 | 1 2 . Processor 1 | . 1 . Hackware . | . . . Protection 1 | . 1 . Artifact . | . . . Weapon 12 | 2 4 6 Energy Gun . | . . . Energy Cannon . | . . . Ballistic Gun 11 | 2 4 5 Ballistic Cannon . | . . . Launcher 1 | . . 1 Special Weapon . | . . . Impact Weapon . | . . . Slashing Weapon . | . . . Piercing Weapon . | . . . Special Melee Weapon . | . . . Unidentified Prototypes . | . . . Parts Lost 10 | . 2 8 Power 3 | . 1 2 Propulsion 2 | . . 2 Utility . | . . . Weapon 5 | . 1 4 Highest Loss Streak 8 | . 1 8 To Critical Strikes . | . . . Average Slot Usage (%) 97 | . 96 97 Engine 13 | . 14 12 Treads 27 | . 27 27 Storage 14 | . 14 14 Processor 1 | . 1 . Protection 10 | . 9 14 Ballistic Gun 27 | . 28 26 Naked Turns . | . . . Heaviest Build 50 | 14 48 50 Greatest Support 40 | 40 40 40 Greatest Overweight (x) 2 | 2 1 1 Average Overweight (x) . | . . 1 Largest Inventory Capacity 20 | 8 20 20 Average Capacity 11 | 6 9 20 Most Carried 13 | 2 12 13 Average Carried 8 | 1 7 11 Final Capacity 20 | 8 20 20 Final Carried 12 | 2 12 6 Class Distribution -------------------- 100% | Mutant Dominant Class ---------------- Mutant | -10/Materials Mutant | -10/Mines Resources | -11 -10 -10 ----------- Run | Yrd Mat Min Matter Collected 760 | 240 442 78 Remotely . | . . . Salvage Created 743 | . 687 56 Parts 55 | . 52 3 Haulers Intercepted 2 | . 2 . Recyclers Shooed 5 | . 5 . Parts Field Recycled . | . . . Retrieved Matter . | . . . Parts Self-Destructed . | . . . Prevented . | . . . Kills | -11 -10 -10 ------- Run | Yrd Mat Min Combat Hostiles Destroyed 18 | . 12 6 Guns 18 | . 12 6 Classes Destroyed 9 | . 8 1 Worker 2 | . 2 . Builder 1 | . 1 . Hauler 2 | . 2 . Recycler 1 | . 1 . Operator 1 | . 1 . Watcher 3 | . 3 . Swarmer 9 | . 5 4 Grunt 7 | . 7 . Assembled 2 | . . 2 Best Kill Streak 4 | . 4 2 Combat Bots Only 3 | . 3 2 Max Kills in Single Turn 2 | . 2 1 Gunslinging 1 | . 1 . Exploded . | . . . Melee . | . . . Uniques/NPCs Destroyed . | . . . Combat | -11 -10 -10 -------- Run | Yrd Mat Min Hostile Shots Fired 138 | . 80 58 Missed 34 | . 17 17 Damage Taken 1754 | . 629 1125 Core 268 | . 138 130 Absorbed by Shields . | . . . Redirected to Shielding 28 | . . 28 Regen/Repaired (Parts) 191 | . 191 . Core Remaining (%) 100 | 100 . . Volleys Fired 117 | . 88 29 Largest 2 | . 2 2 Hottest 53 | . 40 53 Shots Fired 225 | . 176 49 Gun 224 | . 176 48 Cannon . | . . . Launcher 1 | . . 1 Special . | . . . Kinetic 224 | . 176 48 Thermal . | . . . Explosive 1 | . . 1 Electromagnetic . | . . . Robot Hit Streak 12 | . 12 7 Robot Miss Streak 5 | . 5 3 Penetration Max . | . . . Secondary Targets 3 | . 2 1 Max Gunslinging Chain 1 | . 1 1 Shots Hit Robots 130 | . 99 31 Core Hits 50 | . 39 11 Critical Kills . | . . . Critical Parts Destroyed 2 | . 1 1 Critical Strikes 2 | . 1 1 Destroy 2 | . 1 1 Melee Attacks . | . . . Impact . | . . . Slashing . | . . . Piercing . | . . . Sneak Attacks . | . . . Combat Hostiles . | . . . Follow-up Attacks . | . . . Damage Inflicted 1459 | . 1049 410 Guns 1441 | . 1049 392 Cannons . | . . . Explosions 18 | . . 18 Melee . | . . . Ramming . | . . . Kinetic 1441 | . 1049 392 Thermal . | . . . Explosive 18 | . . 18 Electromagnetic . | . . . Impact . | . . . Slashing . | . . . Piercing . | . . . Highest Corruption 7 | . . 7 Average Corruption 7 | . . 7 Corruption Purged . | . . . Corruption Blocked . | . . . Effects 2 | . . 2 Message Errors 1 | . . 1 Data Loss (major) 1 | . . 1 Overload Shots . | . . . Overflow Damage . | . . . Projectiles . | . . . Explosions . | . . . Melee . | . . . Knockbacks . | . . . Impact . | . . . Kinetic . | . . . Secondary . | . . . Self-Inflicted Damage 49 | . . 49 Shots 1 | . . 1 Rammed . | . . . Targets Rammed . | . . . Kicked . | . . . Crushed . | . . . Highest Temperature 18 | . 18 . Average Temperature 8 | . 8 . Received Heat Transfer 237 | . 237 . Siege Activations . | . . . Robots Corrupted . | . . . Combat Hostiles . | . . . Parts Fried . | . . . Impact Corruptions . | . . . Robots Melted . | . . . Combat Hostiles . | . . . Parts Melted . | . . . Heat Transferred . | . . . Parts Sabotaged . | . . . Parts Stolen . | . . . Parts Stripped . | . . . Power Chain Reactions . | . . . Alert | -11 -10 -10 ------- Run | Yrd Mat Min Peak Influence 202 | . 202 56 Initial . | . . . Average 47 | . 51 38 Maximum Alert Level 1 | . 1 . Low Security (%) 95 | 100 94 100 Level 1 4 | . 5 . Level 2 . | . . . Level 3 . | . . . Level 4 . | . . . Level 5 . | . . . High Security . | . . . Max Security . | . . . Squads Dispatched 4 | . 4 . Investigation 4 | . 4 . Extermination . | . . . Reinforcement . | . . . Assault . | . . . Garrison . | . . . Intercept . | . . . Searches Triggered . | . . . Construction Impeded . | . . . Haulers Reinforced . | . . . Active Scanning Responses . | . . . Cargo Convoy Interrupts . | . . . Stealth | -11 -10 -10 --------- Run | Yrd Mat Min Distress Signals 4 | . 3 1 Communications Jammed . | . . . Distress Signals . | . . . Times Spotted 47 | . 24 23 Peak Tracking Total 8 | . 3 8 Tactical Retreats 2 | . 1 1 Traps | -11 -10 -10 ------- Run | Yrd Mat Min Traps Triggered 2 | . 2 . Indirectly . | . . . Trap Hack Attempts . | . . . Triggered . | . . . Disarmed . | . . . Reprogrammed . | . . . Reused . | . . . Traps Extracted . | . . . Installed . | . . . Triggered . | . . . Machines | -11 -10 -10 ---------- Run | Yrd Mat Min Machines Disabled . | . . . Max in Single Turn . | . . . Machines Repaired . | . . . Machines Dismantled . | . . . Machines Sabotaged . | . . . Overloaded Fab Kills . | . . . Hacking | -11 -10 -10 --------- Run | Yrd Mat Min Machines Accessed 8 | . 8 . Terminals 5 | . 5 . Fabricators . | . . . Repair Stations 1 | . 1 . Recycling Units 2 | . 2 . Scanalyzers . | . . . Garrison Access . | . . . Total Hacks 18 | . 18 . Successful 11 | . 11 . Failed 7 | . 7 . Catastrophic 2 | . 2 . Database Lockouts . | . . . Manual 7 | . 7 . Terminals 11 | . 11 . Fabricators . | . . . Repair Stations 4 | . 4 . Recycling Units 3 | . 3 . Scanalyzers . | . . . Garrison Access . | . . . Terminal Hacks 5 | . 5 . Part Schematic 1 | . 1 . Prototype ID Bank 1 | . 1 . Branch Access Points 1 | . 1 . Alert Level 1 | . 1 . Hauler Manifests 1 | . 1 . Fabricator Hacks . | . . . Repair Station Hacks 4 | . 4 . Scan Component 2 | . 2 . Repair 2 | . 2 . Recycling Unit Hacks 2 | . 2 . Report Inventory 2 | . 2 . Scanalyzer . | . . . Garrison Access Hacks . | . . . Unauthorized Hacks . | . . . Terminals . | . . . Fabricators . | . . . Repair Stations . | . . . Recycling Units . | . . . Scanalyzers . | . . . Garrison Access . | . . . Data Cores Recovered . | . . . Used . | . . . Hacking Detections 5 | . 5 . Full Trace Events 3 | . 3 . Feedback Events . | . . . Feedback Blocked . | . . . Robot Schematics Acquired . | . . . Robots Built . | . . . Authchips . | . . . Time . | . . . Total Robot Build Rating . | . . . Part Schematics Acquired 1 | . 1 . Parts Built . | . . . Authchips . | . . . Time . | . . . Total Part Build Rating . | . . . Parts Repaired 2 | . 2 . Time 52 | . 52 . Parts Recycled . | . . . Recycled Matter . | . . . Retrieved Matter . | . . . Retrieved Components . | . . . Parts Scanalyzed . | . . . Part Schematics Acquired . | . . . Parts Damaged . | . . . Bothacking | -11 -10 -10 ------------ Run | Yrd Mat Min Used RIF Installer . | . . . Robots Hacked . | . . . Non-combat . | . . . Combat . | . . . Robot Hacks Applied . | . . . Relay Couplers Released . | . . . Fabnet Peak Effective % . | . . . Robots Rewired . | . . . Allies Hacked . | . . . Hacks Repelled . | . . . Allies | -11 -10 -10 -------- Run | Yrd Mat Min Total Allies . | . . . Largest Group . | . . . Highest-Rated Group . | . . . Highest-Rated Ally . | . . . Total Orders . | . . . Ally Attacks . | . . . Total Damage . | . . . Kills . | . . . Allies Corrupted . | . . . Allies Melted . | . . . Intel | -11 -10 -10 ------- Run | Yrd Mat Min Robot Analysis Total . | . . . Derelict Logs Recovered 1 | . . 1 Drone Launches . | . . . Drone Recoveries . | . . . Exploration | -11 -10 -10 ------------- Run | Yrd Mat Min Turns Passed 2660 | 72 2018 570 Spaces Moved 1176 | 42 963 171 Core 7 | 7 . . Treads 1169 | 35 963 171 Legs . | . . . Wheels . | . . . Hover . | . . . Flight . | . . . Fastest Speed 50 | 50 160 240 Average Speed 175 | 148 165 240 Slowest Speed 240 | 160 240 240 Overloaded Moves . | . . . Propulsion Burnouts . | . . . Robots Hopped . | . . . Cave-ins Triggered 1 | . . 1 Exploration Rate (%) 51 | 4 99 50 Regions Visited 2 Branch Regions 1 Pre-discovered Areas . | . . . Known Exits Taken 1 | . 1 . Unknown Exits Taken 1 | 1 . . Scrap Searched 1 | . . 1 Spaces Dug . | . . . Terrain Destroyed 13 | . . 13 Melee . | . . . Projectile . | . . . AOE 13 | . . 13 Terrain Rammed . | . . . Walls Destroyed . | . . . Machines Disabled . | . . . Actions | -11 -10 -10 --------- Run | Yrd Mat Min Total 1561 | 49 1230 282 Wait 222 | . 151 71 Move 1174 | 41 962 171 Hop . | . . . Pick Up 15 | 2 12 1 Fast Attach 13 | 6 6 1 Attach 9 | . 2 7 Detach 1 | . 1 . Swap 5 | . 3 2 Drop 5 | . 5 . Fire 117 | . 88 29 Melee . | . . . Ram . | . . . Kick . | . . . Crush . | . . . Escape Stasis . | . . . Rewire . | . . . Trap . | . . . Miscellaneous . | . . . Route ------- -11/Scrapyard -10/Materials (discovered 5 exits: [*Mat x3] / *Min / [*Sub]) -10/Mines (discovered 2 exits: [*Mat x2]) History --------- Turn | Location | Event 2 | -11/Scrapyard | Met Revision 17 32 | -11/Scrapyard | Discovered new exit (range 15) 73 | -11/Scrapyard | Entered Materials 308 | -10/Materials | Build established: Mutant 678 | -10/Materials | Core integrity fell below 50% 745 | -10/Materials | Discovered new exit (range 14) 843 | -10/Materials | Discovered new exit (range 9) 1047 | -10/Materials | Repaired Lgt. Treads 1075 | -10/Materials | Repaired Lgt. Treads 1162 | -10/Materials | Discovered new exit (range 12) 1693 | -10/Materials | Discovered new exit (range 8) 1807 | -10/Materials | Discovered new exit (range 10) 1968 | -10/Materials | Identified exit to Mines 2091 | -10/Materials | Entered Mines 2111 | -10/Mines | Discovered new exit (range 14) 2480 | -10/Mines | Received a Rocket Launcher from a helpful Derelict 2525 | -10/Mines | Discovered new exit (range 5) 2575 | -10/Mines | Assembled infested the area 2607 | -10/Mines | Crushed by falling debris 2628 | -10/Mines | Core integrity fell below 20% 2641 | -10/Mines | Lost 8 parts (2p2n4w) 2654 | -10/Mines | Learned 2 Materials zone layouts 2661 | -10/Mines | Destroyed by as-38859 with Assembled Maul Last Messages --------------- 02623_ System corrupted: Substantial component data lost. 02623_ The unstable cave ceiling collapses. 02625_ K-01 Serf collects debris. 02626_ The unstable cave ceiling collapses. 02629_ K-01 Serf collects debris. 02631_ The unstable cave ceiling collapses. 02631_ as-38808 destroyed. 02633_ U-05 Engineer lays Concrete. 02636_ Acquired 7 matter. 02636_ K-01 Serf collects debris. 02637_ The unstable cave ceiling collapses. 02638_ K-01 Serf crushed by falling debris. 02638_ K-01 Serf destroyed. 02638_ Acquired 4 matter. 02639_ EY5P UTB:7UW>WY/|Q%POV:/16I 02649_ The unstable cave ceiling collapses. 02652_ Acquired Lgt. Ion Engine. 02654_ Acquired derelict log, extracted data. Data stored: Materials zone layouts (x2). Map ----- +----------------------------------------------------+ | ?# #???# # # ## #???? ??????????????? | | ?## #????# ^# #### #????????????????? | | ??###?????######## #?????????????????? | | ?????????????????# < #??????????????????? | | ?????????????????# ##??????????????????? | | ?????????????????## ## #???????????????????? | | ??????????????????# #?# #???????????????????? | | ??????????????????# #??# ##???????????????????? | | ??????????????????# #???####????????????????????? | | ??????????????????# #?????##????????????????????? | | ??????????????????#=%###### #????????????????????? | | ???????????#??????# !# # # ###??????????????????? | | ???????????# ?????# %# #??????????????????? | | ???????????# ???### # # #??????????????????? | | ????????????# #### # # ##?????????????????? | | ?????????????# ### #?????????????????? | | ?????????????# ## #?????????????????? | | ?????????????## ######?????????????? | | ????????????## #???????????? | | ????????????# # ## # ########????????????? | | ????????????# # ##???????????????????? | | ????????????# #????????????????????? | | ????????? = ##????????????????????? | | ????????? %! % # ##?????????????????????? | | ?????????? = = ########???????????????? | | ?????????? ## # #@a= a ????????? | | ?????????????#?## ####!########???????????????? | | ????????????????#####???# #??????????????????????? | | ????????????????????????# #??????????????????????? | | ????????????????????????# ??????????????????????? | | ????????????????????????###??????????????????????? | | ?????????????????????????????????????????????????? | | ?????????????????????????????????????????????????? | | ?????????????????????????????????????????????????? | | ?????????????????????????????????????????????????? | | ?????????????????????????????????????????????????? | | ?????????????????????????????????????????????????? | | ?????????????????????????????????????????????????? | | ?????????????????????????????????????????????????? | | ?????????????????????????????????????????????????? | | ?????????????????????????????????????????????????? | | | | | | | | | | | | | | | | | | | +----------------------------------------------------+ Best States ------------- Heat Dissipation 25 Energy Generation 10 Energy Capacity 250 Matter Stores 300 Matter Capacity 300 Sight Range 16 Terrain Scan Density 10 Core Shielding 20 Evasion (%) 40 Recoil Reduction 2 Item Schematics ----------------- Lgt. Ion Engine | -10/Materials | Hacked Robot Schematics ------------------ None Fabricated ------------ Nothing Alien Tech Used ----------------- None Achievements -------------- None Challenges ------------ None Game ------ Seed LatentActiveFalx Manual? 0 Play Time 00:19:22 Cumulative 13.6 hours Start 2024.05.01 @ 15:22:04 End 2024.05.01 @ 15:39:39 Sessions 1 Manual Loads 0 Difficulty Rogue Special Mode None Game No. 23 Rogue 23 Adventurer 0 Explorer 0 Win Type - Total 0 Types 0/0/0/0/0/0/0/0/0 Lore% 6 Gallery% 20 Achievement% 20 Wizard Run 0 Options --------- Layout 1 ASCII 0 Keyboard 0 Movement Mouse Keybinds 0 Fullscreen 1 Font 24/Terminus Map View 50x35 Zoom Use 0% Tactical HUD 1 Map Filters NONE Filters NONE Steam 1 RUN: f24901b6-6ca2-4c39-b198-4f1a4272d4f6